bitfinex/quotes_ETHUSD_20220218
["timestamp","ask_amount","ask_price","bid_price","bid_amount"]
[1645164169840,1.84913261,2899.6,2899.5,4.66980075]
[1645164170043,1.84913261,2899.6,2899.5,26.70120075]
[1645164170241,1.84913261,2899.6,2899.5,28.66126817]
[1645164171243,1.84913261,2899.6,2899.5,8.23886817]
[1645164171448,1.84913261,2899.6,2899.5,6.77780075]
[1645164172250,1.84913261,2899.6,2899.5,3.27780075]
[1645164172450,1.84913261,2899.6,2899.5,5.76880075]
[1645164173903,1.84913261,2899.6,2899.5,26.01880075]
[1645164174105,1.84913261,2899.6,2899.5,27.47986817]
[1645164174717,1.84913261,2899.6,2899.5,7.22986817]
[1645164174901,1.84913261,2899.6,2899.5,6.92986817]
[1645164175103,1.84913261,2899.6,2899.5,7.22986817]
[1645164175301,0.28138115,2899.6,2899.5,7.22986817]
[1645164175501,0.28138115,2899.6,2899.5,6.92986817]
[1645164175701,0.28138115,2899.6,2899.5,7.24758187]
[1645164175906,0.28029019,2899.6,2899.5,7.24758187]
[1645164176305,0.28029019,2899.6,2899.5,3.74758187]
[1645164176503,0.28029019,2899.6,2899.5,5.78651445]
[1645164176901,0.28029019,2899.6,2899.5,5.78542349]
[1645164177142,0.28029019,2899.6,2899.5,2.28542349]
[1645164177543,0.28029019,2899.6,2899.5,2.94011066]
[1645164177946,0.28029019,2899.6,2899.5,6.44011066]
[1645164178344,0.28029019,2899.6,2899.5,5.78542349]
[1645164180245,0.28029019,2899.6,2899.5,2.28542349]
[1645164180446,0.28029019,2899.6,2899.5,2.93990742]
[1645164180892,0.28029019,2899.6,2899.5,6.43990742]
[1645164181097,0.28029019,2899.6,2899.5,4.40097484]
[1645164181292,0.28029019,2899.6,2899.5,2.28542349]
[1645164181498,0.28029019,2899.6,2899.5,2.93988663]
[1645164181698,0.28029019,2899.6,2899.5,6.43988663]
[1645164182300,0.28029019,2899.6,2899.5,7.90095405]
[1645164185038,0.25166518,2899.6,2899.5,28.15095405]
[1645164185242,0.25166518,2899.6,2899.5,3.74649091]
[1645164185442,0.25166518,2899.6,2899.5,2.28542349]
[1645164185841,0.25166518,2899.6,2899.5,1.78642349]
[1645164186039,0.25166518,2899.6,2899.5,1.75779848]
[1645164188421,0.528995,2899.6,2899.5,1.18751445]
[1645164190795,0.528995,2899.6,2899.5,1.2008384]
[1645164195991,0.528995,2899.6,2899.5,1.18751445]
[1645164196391,0.528995,2899.6,2899.5,0.0177137]
[1645164196595,0.528995,2899.6,2899.5,1.20149855]
[1645164196790,0.528995,2899.6,2899.5,1.20147885]
[1645164196992,0.52790404,2899.6,2899.5,1.20147885]
[1645164197996,0.52790404,2899.6,2899.5,1.20038789]
[1645164198597,0.52790404,2899.6,2899.4,0.37212305]
[1645164198598,2.5,2899.5,2899.4,0.37212305]
[1645164198796,0.27732982,2899.5,2899.4,0.37212305]
[1645164199003,1.27732982,2899.5,2899.4,0.37212305]
[1645164199202,1.27732982,2899.5,2899.4,1.56567136]
[1645164199396,0.27732982,2899.5,2899.4,1.56567136]
[1645164201850,0.27732982,2899.5,2899.4,0.37212305]
[1645164202652,0.27732982,2899.5,2899.4,1.56431773]
[1645164206100,0.27732982,2899.5,2899.4,1.5856827]
[1645164207146,0.27732982,2899.5,2899.4,1.55705769]
[1645164207745,0.27732982,2899.5,2899.4,1.55590296]
[1645164210992,0.49927903,2899.6,2899.4,0.37147646]
[1645164211188,0.22194921,2899.6,2899.4,0.37147646]
[1645164214397,2.91408392,2899.6,2899.4,0.37147646]
[1645164214647,0.499,2899.5,2899.4,0.37147646]
[1645164214845,1.499,2899.5,2899.4,0.37147646]
[1645164215051,1.6714,2899.5,2899.4,0.37147646]
[1645164215245,2.32936282,2899.5,2899.4,0.37147646]
[1645164215748,1.6714,2899.5,2899.4,0.37147646]
[1645164216145,1.6714,2899.5,2899.4,0.35761294]
[1645164216346,1.9714,2899.5,2899.4,0.35761294]
[1645164218212,7.62936282,2899.5,2899.4,0.35761294]
[1645164218394,7.62936282,2899.5,2899.4,0.0141149]
[1645164218605,7.62936282,2899.5,2899.4,0.00485222]
[1645164219001,2.62936282,2899.5,2899.4,0.00376126]
[1645164219202,1.9714,2899.5,2899.4,0.00376126]
[1645164219402,1.799,2899.5,2899.4,0.00376126]
[1645164219602,2.45696282,2899.5,2899.4,0.00376126]
[1645164220703,1.799,2899.5,2899.4,0.00376126]
[1645164220907,1.799,2899.5,2899.2,0.02670841]
[1645164221104,2.45696282,2899.5,2899.2,0.02670841]
[1645164221303,0.86281,2899.4,2899.2,0.02670841]
[1645164221505,0.499,2899.3,2899.2,0.02670841]
[1645164221705,0.22085825,2899.6,2899.2,0.02670841]
[1645164221907,1.1585,2899.5,2899.2,0.02670841]
[1645164222953,1.4585,2899.5,2899.2,0.02670841]
[1645164224962,1.1585,2899.5,2899.2,0.02670841]
[1645164226005,1.1585,2899.5,2898.7,0.01897605]
[1645164226208,1.1585,2899.5,2899.0,1.18545265]
[1645164226408,0.22085825,2899.6,2899.1,0.00406666]
[1645164227109,0.19223324,2899.6,2899.1,0.00406666]
[1645164227920,0.19223324,2899.6,2899.1,3.50406666]
[1645164228120,0.19223324,2899.6,2899.1,3.47544165]
[1645164228316,0.19223324,2899.6,2899.1,4.59124165]
[1645164228517,0.19223324,2899.6,2899.1,26.30230907]
[1645164228760,0.00495915,2900.2,2899.3,20.55]
[1645164228917,0.00495915,2900.3,2899.4,25.21106742]
[1645164229116,0.00495915,2900.3,2900.0,0.96339054]
[1645164229521,0.00495915,2900.5,2900.0,0.96339054]
[1645164229753,0.65796282,2900.7,2900.0,0.96339054]
[1645164229754,0.66292197,2900.6,2900.0,0.96339054]
[1645164229951,0.65796282,2900.5,2899.5,4.3273]
[1645164230154,0.66292197,2900.4,2899.5,4.3273]
[1645164230350,0.65796282,2900.4,2899.5,4.6273]
[1645164230555,0.00495915,2900.3,2899.5,4.6273]
[1645164230751,0.65796282,2900.4,2899.5,4.6273]
[1645164230950,0.23989657,2900.3,2899.6,4.71488993]
[1645164231150,0.00495915,2900.2,2899.7,2.25406103]
[1645164231350,0.23989657,2900.1,2899.8,1.21488993]
[1645164231750,0.24485572,2900.0,2899.8,1.21488993]
[1645164231991,0.23989657,2899.9,2899.8,1.21488993]
[1645164232752,0.23989657,2900.4,2899.8,1.21488993]
[1645164232955,0.95796282,2900.6,2899.8,1.21488993]
[1645164232956,0.24485572,2900.3,2899.8,1.21488993]
[1645164233159,0.23989657,2900.2,2899.8,1.21488993]
[1645164233399,0.23989657,2900.1,2899.7,1.0391711]
[1645164233596,0.23989657,2900.1,2899.5,1.1544]
[1645164233597,0.00495915,2900.0,2899.5,1.1544]
[1645164233800,0.00495915,2900.0,2899.6,1.21557028]
[1645164233801,0.23989657,2899.9,2899.6,1.21557028]
[1645164234002,0.23989657,2899.9,2899.7,3.5]
[1645164234200,0.00495915,2899.9,2899.8,1.21557028]
[1645164234401,0.65796282,2900.7,2899.8,1.21557028]
[1645164234601,0.65796282,2900.5,2899.9,1.21557028]
[1645164234803,0.90287493,2900.4,2899.8,1.17714683]
[1645164235001,0.23995296,2900.3,2899.8,1.17714683]
[1645164235201,0.23995296,2900.2,2899.4,4.7203]
[1645164235400,0.00495915,2900.1,2899.5,1.21556708]
[1645164235600,0.23995296,2900.0,2899.5,1.21556708]
[1645164235806,0.23995296,2900.0,2899.5,5.01556708]
[1645164236003,2.0525534,2900.6,2899.6,1.21556708]
[1645164236004,0.24491211,2899.9,2899.6,1.21556708]
[1645164236205,0.00495915,2900.3,2899.6,1.21556708]
[1645164236401,1.95796282,2900.6,2899.7,1.21556708]
[1645164236402,0.00495915,2899.9,2899.7,1.21556708]
[1645164236601,0.24364591,2899.8,2899.5,3.5]
[1645164236802,0.00495915,2900.1,2899.6,1.21175607]
[1645164237001,0.24362515,2900.0,2899.7,1.21175607]
[1645164237245,1.3,2900.6,2899.4,4.4203]
[1645164237246,0.2485843,2899.9,2899.4,4.4203]
[1645164237445,0.65796282,2900.3,2899.5,1.21195404]
[1645164237446,0.24362515,2899.8,2899.5,1.21195404]
[1645164237745,0.00495915,2899.8,2899.5,1.21195404]
[1645164237947,0.3,2900.6,2899.0,4.53475]
[1645164237948,0.24364223,2899.7,2899.6,1.21195404]
[1645164238148,0.24364223,2899.7,2899.2,4.7218]
[1645164238149,0.24364223,2900.3,2899.3,1.21195404]
[1645164238375,0.00495915,2900.2,2899.4,3.5]
[1645164238546,0.24364223,2900.1,2899.5,1.21195404]
[1645164238946,0.00495915,2900.0,2899.5,1.21195404]
[1645164239148,0.24364223,2900.0,2899.8,1.02872815]
[1645164239347,0.00495915,2900.1,2899.9,1.21148802]
[1645164239648,0.24358013,2900.0,2899.9,1.21148802]
[1645164239850,0.24849852,2900.0,2899.9,1.21148802]
[1645164240048,0.24850312,2900.0,2899.9,1.21148802]
[1645164240549,0.00495915,2900.0,2899.9,1.21148802]
[1645164240749,0.24352515,2900.0,2899.9,1.21148802]
[1645164240996,0.24848471,2900.0,2899.9,1.21148802]
[1645164241193,0.00495915,2900.0,2899.9,1.21148802]
[1645164241394,0.00495915,2900.6,2899.9,1.21148802]
[1645164241594,0.24351498,2900.5,2899.9,1.21148802]
[1645164241897,0.00495915,2900.4,2899.9,1.21148802]
[1645164242095,0.24351498,2900.3,2899.9,1.21148802]
[1645164242625,0.24847413,2900.2,2899.9,1.21148802]
[1645164242800,0.24351498,2900.1,2899.9,1.21148802]
[1645164243000,0.24351498,2900.0,2899.7,0.01349345]
[1645164243200,0.24351498,2899.9,2899.8,1.21921523]
[1645164243402,0.95796282,2900.6,2899.8,1.21921523]
[1645164243403,0.00495915,2900.4,2899.8,1.21921523]
[1645164243609,0.23531751,2900.3,2899.8,1.21921523]
[1645164243803,0.00495915,2900.2,2899.8,1.21921523]
[1645164244005,0.23531751,2900.1,2899.8,1.21921523]
[1645164244403,0.00495915,2900.0,2899.8,1.21921523]
[1645164244656,0.00495915,2900.5,2900.0,1.13400437]
[1645164244850,0.00495915,2900.2,2900.0,1.13400437]
[1645164245051,0.23527023,2900.1,2900.0,1.13400437]
[1645164245251,0.00495915,2900.3,2900.0,2.35315198]
[1645164245450,0.23527023,2900.2,2900.0,1.13400437]
[1645164245651,0.23527023,2900.1,2900.0,0.3766184]
[1645164246067,0.23527023,2900.1,2900.0,0.40656345]
[1645164250801,0.23527023,2900.1,2899.4,3.5]
[1645164251005,0.24022938,2900.0,2899.5,1.24767136]
[1645164251201,0.23527023,2899.9,2899.5,1.24767136]
[1645164251455,0.00495915,2899.8,2899.5,1.24767136]
[1645164251600,0.00495915,2900.5,2899.5,1.24767136]
[1645164251802,0.20609799,2900.4,2899.5,1.54767136]
[1645164252002,0.00495915,2900.3,2899.6,1.24767136]
[1645164252244,0.20609799,2900.2,2899.6,1.24767136]
[1645164252443,0.20609799,2900.2,2899.7,1.24767136]
[1645164252646,0.21105714,2900.1,2899.8,1.24767136]
[1645164252850,0.20609799,2900.0,2899.4,0.3]
[1645164253051,0.00495915,2900.5,2899.9,0.90578792]
[1645164253247,0.20608654,2900.4,2899.9,0.90578792]
[1645164253646,0.00497947,2900.3,2899.9,0.90578792]
[1645164253848,0.20608654,2900.2,2899.9,0.90578792]
[1645164254246,0.20608654,2900.1,2899.9,0.90578792]
[1645164255250,0.20608654,2900.1,2900.0,1.25143913]
[1645164255656,0.20608654,2900.1,2900.0,1.25149191]
[1645164255897,0.20608654,2900.1,2899.9,0.90578792]
[1645164256099,0.00497947,2900.1,2899.9,0.90578792]
[1645164256298,0.00497947,2900.6,2900.0,1.25133627]
[1645164256498,0.20146237,2900.5,2900.0,1.25133627]
[1645164256703,0.00497947,2900.4,2900.0,1.25133627]
[1645164256899,0.20146237,2900.3,2900.0,1.25133627]
[1645164257100,0.20146237,2900.3,2899.9,0.90578792]
[1645164257301,0.20644184,2900.2,2899.9,0.90578792]
[1645164257502,0.20146237,2900.1,2899.9,0.90578792]
[1645164257744,0.20146237,2900.0,2899.9,0.90578792]
[1645164258004,0.00497947,2900.0,2899.9,0.90578792]
[1645164258206,0.00497947,2900.6,2899.9,2.1577572]
[1645164258506,0.00497947,2900.0,2899.9,0.90578792]
[1645164258706,0.00497947,2900.6,2899.9,0.90578792]
[1645164258908,0.20145206,2900.5,2899.9,0.90578792]
[1645164259214,0.00497947,2900.4,2899.9,0.90578792]
[1645164259407,0.20145206,2900.3,2899.9,0.90578792]
[1645164259843,0.20643153,2900.2,2899.9,0.90578792]
[1645164260044,0.20145206,2900.1,2899.9,0.90578792]
[1645164260246,0.00497947,2900.2,2899.9,0.90578792]
[1645164260445,0.20147425,2900.1,2900.0,1.2518696]
[1645164260849,0.20147425,2900.6,2900.0,1.2518696]
[1645164261046,0.00497947,2900.5,2900.0,1.2518696]
[1645164261247,0.20147425,2900.4,2900.0,1.2518696]
[1645164261753,0.20645372,2900.3,2900.0,1.2518696]
[1645164261947,0.20147425,2900.2,2900.0,1.2518696]
[1645164262149,0.20147425,2900.1,2900.0,1.2518696]
[1645164262350,0.20147425,2900.2,2900.0,1.2518696]
[1645164262551,0.20147425,2900.1,2900.0,1.2518696]
[1645164263249,0.20147425,2900.6,2900.0,1.2518696]
[1645164263492,0.20645372,2900.5,2900.0,1.2518696]
[1645164263692,0.20147425,2900.4,2900.0,1.2518696]
[1645164263894,0.20147425,2900.3,2900.0,1.2518696]
[1645164265300,0.20147425,2900.3,2899.6,1.2075]
[1645164265499,0.00497947,2900.2,2899.7,1.25324726]
[1645164265702,0.20147425,2900.1,2899.7,1.25324726]
[1645164265900,0.00497947,2900.0,2899.7,1.25324726]
[1645164266099,0.20192739,2899.9,2899.7,1.25324726]
[1645164266400,0.30497947,2900.3,2899.9,0.34813101]
[1645164266598,0.20192702,2900.2,2900.0,1.25324726]
[1645164270910,0.20192702,2900.2,2900.1,0.01341607]
[1645164271097,0.20192702,2900.2,2900.1,1.26666333]
[1645164280398,0.8801534,2900.6,2900.2,0.00123591]
[1645164280399,0.65796282,2900.6,2900.2,0.00123591]
[1645164280607,0.88312396,2900.9,2900.4,0.98758946]
[1645164280806,8.4412,2901.7,2900.5,3.999]
[1645164280807,0.66058712,2901.3,2900.5,3.999]
[1645164281000,0.66054791,2901.4,2900.6,5.65446314]
[1645164281200,0.66054791,2901.5,2900.7,3.6723]
[1645164281503,0.66054791,2901.5,2900.7,6.6714694]
[1645164281804,0.66054791,2901.6,2900.8,0.65446314]
[1645164281998,0.66054791,2901.6,2900.9,1.1547917]
[1645164282251,0.66054791,2901.6,2901.0,0.3]
[1645164282460,0.66054791,2901.8,2901.0,0.3]
[1645164282852,0.66054791,2901.8,2901.6,1.14671455]
[1645164283452,0.66054791,2901.9,2901.6,1.14671455]
[1645164283656,0.66054791,2902.0,2901.6,1.14671455]
[1645164283853,0.00316535,2901.8,2901.6,1.14671455]
[1645164284655,0.66054791,2902.0,2901.6,1.14671455]
[1645164284856,0.66054791,2902.0,2901.1,3.5]
[1645164285060,0.00316535,2901.8,2901.1,3.5]
[1645164285900,0.66054791,2902.0,2901.2,0.91647528]
[1645164286103,0.0031655,2901.6,2901.2,0.91647528]
[1645164286299,0.0031655,2901.6,2901.2,1.21647528]
[1645164286702,0.0031655,2901.6,2901.3,3.5]
[1645164286902,0.0031655,2901.6,2901.2,1.21647528]
[1645164287103,0.66054791,2902.1,2901.2,1.21647528]
[1645164287611,0.0031655,2901.6,2901.2,1.21647528]
[1645164288406,0.96054791,2902.2,2901.2,1.21647528]
[1645164288703,0.00295547,2901.5,2901.2,0.91647528]
[1645164289307,0.0118201,2902.0,2901.7,0.00250659]
[1645164289520,1.2108,2902.3,2901.7,0.00250659]
[1645164289762,1.0,2902.5,2901.7,0.00250659]
[1645164289960,0.01182022,2901.9,2901.7,0.00250659]
[1645164290766,3.5,2902.4,2901.7,0.00250659]
[1645164290963,3.5,2902.4,2902.0,1.11299786]
[1645164291165,0.3,2902.5,2901.7,0.00250659]
[1645164291367,2.26054791,2902.6,2901.7,0.00250659]
[1645164291967,3.5,2902.5,2901.7,0.00250659]
[1645164292813,0.97395976,2902.4,2901.7,0.00250659]
[1645164293393,0.00316514,2902.2,2901.7,0.00250659]
[1645164294396,3.5,2902.3,2901.7,0.00250659]
[1645164294602,0.0031652,2902.1,2901.7,0.00250659]
[1645164295602,1.57395976,2902.4,2901.7,0.00250659]
[1645164295804,0.00316523,2902.0,2901.7,0.00250659]
[1645164296513,0.00316523,2902.0,2900.8,0.00316659]
[1645164296514,5.0,2901.8,2900.8,0.00316659]
[1645164296716,5.0,2901.8,2900.5,0.1723]
[1645164296717,4.00395457,2901.7,2900.5,0.1723]
[1645164296905,6.41735457,2901.7,2900.5,0.1723]
[1645164297147,6.80410293,2901.7,2900.8,0.00316657]
[1645164297958,6.80410293,2901.7,2899.9,0.34813101]
[1645164297959,5.0,2901.2,2899.9,0.34813101]
[1645164298155,4.17625457,2901.1,2900.8,0.00316628]
[1645164298351,5.0,2901.0,2900.8,0.00316628]
[1645164298551,4.1713,2900.9,2900.8,0.00316628]
[1645164298752,5.0,2900.8,2899.9,0.34813101]
[1645164298951,0.86243,2900.6,2899.9,0.34813101]
[1645164299177,1.36143,2900.6,2899.9,0.34813101]
[1645164299354,1.66143,2900.6,2899.9,0.34813101]
[1645164300152,3.5,2900.5,2899.9,0.34813101]
[1645164300351,1.13383336,2900.4,2899.9,0.34813101]
[1645164300561,3.5,2900.3,2900.1,0.00174302]
[1645164301196,1.0,2900.4,2900.1,0.00174302]
[1645164301598,1.0,2900.4,2899.9,0.34813101]
[1645164301901,1.0,2900.4,2900.1,0.00316654]
[1645164302703,3.5,2900.3,2899.9,0.34813101]
[1645164303006,4.36249,2900.3,2900.1,0.00316654]
[1645164303802,0.86249,2900.3,2900.1,0.00316654]
[1645164304002,4.5,2900.4,2899.9,0.34813101]
[1645164304205,3.5,2900.4,2900.1,0.00316657]
[1645164304404,1.0,2900.3,2900.1,0.00316657]
[1645164305250,1.0,2900.3,2899.9,0.34813101]
[1645164305456,1.0,2900.3,2900.1,0.00316657]
[1645164305651,1.86249,2900.3,2900.1,0.00316657]
[1645164306052,1.86249,2900.3,2900.1,0.01657278]
[1645164306452,1.86249,2900.3,2900.1,0.01340621]
[1645164306654,1.86249,2900.3,2900.1,0.01657278]
[1645164307552,1.86249,2900.3,2900.1,0.01340621]
[1645164307752,1.86249,2900.3,2900.1,0.01657278]
[1645164308800,1.86249,2900.3,2900.1,0.01340621]
[1645164309004,1.86249,2900.3,2900.1,0.01657278]
[1645164309403,1.86249,2900.3,2900.1,0.01352724]
[1645164309602,3.5,2900.2,2900.1,0.01352724]
[1645164310102,3.5,2900.2,2900.1,0.01036067]
[1645164310401,3.999,2900.2,2900.1,0.01036067]
[1645164310604,0.499,2900.2,2900.1,0.01036067]
[1645164310801,3.999,2900.2,2900.0,0.0031666]
[1645164311201,3.999,2900.2,2899.9,0.34813101]
[1645164311202,0.499,2900.2,2899.9,0.34813101]
[1645164311403,0.499,2900.2,2900.0,0.00316663]
[1645164312001,3.999,2900.2,2900.0,0.00316663]
[1645164312248,0.499,2900.2,2900.0,0.00316663]
[1645164312446,3.999,2900.2,2899.9,0.34813101]
[1645164312646,3.999,2900.2,2900.0,0.00305975]
[1645164312846,0.499,2900.2,2900.0,0.00305975]
[1645164313249,3.5,2900.1,2900.0,0.00305975]
[1645164313554,3.5,2900.1,2899.9,0.34813101]
[1645164313750,1.0,2900.0,2899.9,0.34813101]
[1645164313981,4.999,2900.0,2899.9,0.34813101]
[1645164314149,1.499,2900.0,2899.9,0.34813101]
[1645164314348,3.999,2900.0,2899.9,0.34813101]
[1645164314752,4.999,2900.0,2899.9,0.34813101]
[1645164315754,1.499,2900.0,2899.9,0.34813101]
[1645164316203,0.499,2900.0,2899.9,0.34813101]
[1645164316396,3.999,2900.0,2899.9,0.34813101]
[1645164316800,4.999,2900.0,2899.9,0.34813101]
[1645164317003,1.499,2900.0,2899.9,0.34813101]
[1645164317402,0.499,2900.0,2899.9,0.34813101]
[1645164318806,3.999,2900.0,2899.9,0.34813101]
[1645164319003,4.299,2900.0,2899.9,0.34813101]
[1645164319202,5.599,2900.0,2899.9,0.34813101]
[1645164319661,5.73665679,2900.0,2899.9,0.34813101]
[1645164320261,6.91445813,2900.0,2899.9,0.34813101]
[1645164320866,5.13980813,2900.0,2899.2,1.11322832]
[1645164321069,0.86278,2899.7,2899.3,0.01267848]
[1645164321267,0.499,2899.6,2899.3,0.01267848]
[1645164321966,2.22459,2899.6,2898.9,1.00740656]
[1645164322168,0.499,2899.6,2899.0,0.00404582]
[1645164322365,1.499,2899.6,2899.3,0.00316934]
[1645164322568,0.499,2899.6,2899.3,0.00316934]
[1645164322865,1.499,2899.6,2899.3,0.00316934]
[1645164323065,0.499,2899.6,2899.3,0.00316934]
[1645164323267,1.499,2899.6,2899.0,0.00404582]
[1645164323531,0.499,2899.6,2899.3,0.00316934]
[1645164323809,1.499,2899.6,2899.3,0.00316934]
[1645164324011,0.499,2899.6,2899.3,0.00316934]
[1645164324219,1.499,2899.6,2899.3,0.00316934]
[1645164324408,1.499,2899.6,2899.0,0.00404582]
[1645164324616,1.499,2899.6,2899.3,0.00316934]
[1645164324817,1.86976813,2899.5,2899.3,0.00316934]
[1645164325016,5.81547813,2899.4,2898.9,0.01267925]
[1645164325214,2.02575,2899.3,2898.9,0.01267925]
[1645164325414,0.499,2899.2,2898.9,0.01267925]
[1645164325613,0.499,2899.2,2898.5,0.00404582]
[1645164325814,1.799,2899.2,2898.6,1.04954117]
[1645164326015,1.799,2899.2,2898.7,0.00404582]
[1645164327253,0.6714,2899.2,2899.1,1.14585441]
[1645164327454,0.50759757,2899.5,2899.1,1.14585441]
[1645164327654,0.50759757,2899.5,2899.2,0.00404582]
[1645164328256,0.50759757,2899.5,2899.2,0.00721527]
[1645164328554,0.80759757,2899.5,2899.2,0.00721527]
[1645164328754,0.80759757,2899.5,2899.2,0.00316945]
[1645164328956,0.3,2899.5,2899.2,0.00316945]
[1645164329154,0.3,2899.5,2898.5,0.00404582]
[1645164329362,1.1724,2899.7,2898.6,1.30066949]
[1645164329555,1.0,2899.7,2898.7,3.50404582]
[1645164329755,1.3,2899.7,2898.8,0.00404582]
[1645164330356,1.3,2899.7,2898.6,0.00404582]
[1645164330558,1.3,2899.7,2899.5,0.92798656]
[1645164331206,0.1724,2900.2,2899.5,0.92798656]
[1645164331408,3.00138126,2900.3,2899.5,0.92798656]
[1645164331608,0.14383546,2900.2,2899.5,0.92798656]
[1645164332613,1.00639546,2900.2,2899.5,0.92798656]
[1645164332908,0.14383546,2900.1,2899.5,0.92798656]
[1645164334212,1.00643546,2900.1,2899.5,0.92798656]
[1645164334412,0.14395638,2900.0,2899.5,0.92798656]
[1645164334657,0.86266,2899.9,2899.5,0.92798656]
[1645164334845,1.16266,2899.9,2899.5,0.92798656]
[1645164335250,1.16266,2899.9,2899.4,0.02649291]
[1645164335652,2.02534,2899.9,2899.4,0.02649291]
[1645164336250,3.02534,2899.9,2899.7,0.01332034]
[1645164336449,3.02534,2899.9,2899.7,0.0106814]
[1645164336855,1.0,2899.8,2899.7,0.0106814]
[1645164337054,1.14414681,2899.8,2899.7,0.0106814]
[1645164337258,1.14414681,2899.8,2899.2,0.01624872]
[1645164337259,3.5,2899.7,2899.2,0.01624872]
[1645164337454,1.86274,2899.8,2899.2,0.01624872]
[1645164337658,0.44424565,2899.7,2899.2,0.01308152]
[1645164337855,0.3,2899.7,2899.2,0.01624862]
[1645164338054,2.16274,2899.8,2899.2,0.01624862]
[1645164338255,0.14425037,2899.7,2899.2,0.01624862]
[1645164338903,0.14425037,2899.7,2899.2,0.01308152]
[1645164339104,0.14425037,2899.7,2899.2,0.01624862]
[1645164339304,0.86274,2899.6,2899.2,0.01624862]
[1645164339504,0.14425037,2899.5,2899.2,0.01624862]
[1645164339735,1.00704037,2899.5,2899.2,0.01624862]
[1645164339909,1.00704037,2899.5,2899.2,0.0031671]
[1645164339910,0.64325037,2899.4,2899.2,0.0031671]
[1645164340105,0.14425037,2899.3,2898.7,0.00404582]
[1645164340305,1.50612037,2899.3,2899.2,0.00316705]
[1645164341305,2.36899037,2899.3,2899.0,0.00404582]
[1645164341505,0.14425037,2899.2,2899.1,1.31158421]
[1645164342142,1.14425037,2899.2,2899.1,1.31158421]
[1645164342346,1.44425037,2899.2,2899.1,0.00316706]
[1645164342551,1.44425037,2899.2,2898.9,0.00404582]
[1645164342747,1.44425037,2899.2,2899.0,1.31158427]
[1645164342748,0.14425037,2899.1,2899.0,1.31158427]
[1645164342946,0.14425037,2899.1,2899.0,1.31563009]
[1645164343748,0.14425037,2899.1,2899.0,1.31246297]
[1645164346096,0.16488843,2899.1,2899.0,1.31246297]
[1645164346295,0.16488843,2899.1,2899.0,0.00404582]
[1645164346495,0.16488843,2899.1,2898.9,0.00316718]
[1645164346696,0.02063806,2899.1,2898.9,0.00316718]
[1645164346895,0.02063806,2899.1,2898.9,1.31158433]
[1645164347302,0.02063806,2899.1,2898.9,1.30841715]
[1645164347500,0.02063806,2899.1,2899.0,1.30841715]
[1645164347700,0.16488175,2899.1,2899.0,0.00404582]
[1645164347905,0.16488175,2899.1,2899.0,1.31246297]
[1645164350145,0.46488175,2899.1,2899.0,0.00404582]
[1645164350344,0.16488175,2899.1,2899.0,1.31246297]
[1645164350549,0.16488175,2899.1,2899.0,0.00404582]
[1645164350744,0.16488175,2899.1,2899.0,1.31246297]
[1645164350944,0.16488175,2899.1,2899.0,0.00404582]
[1645164351144,0.16488175,2899.1,2899.0,1.31246297]
[1645164351344,0.16488175,2899.1,2899.0,0.00404582]
[1645164351745,0.16488175,2899.1,2899.0,1.31246297]
[1645164352391,0.16488175,2899.1,2899.0,0.00404582]
[1645164352552,0.16488175,2899.1,2899.0,1.30841715]
[1645164352751,0.16488175,2899.1,2899.0,0.00404582]
[1645164352954,0.16488175,2899.1,2899.0,1.31246297]
[1645164353159,0.16488175,2899.1,2899.0,0.00404582]
[1645164353439,0.16488175,2899.1,2898.6,1.30841715]
[1645164353596,0.16488175,2899.1,2898.9,0.00316718]
[1645164353597,0.14424369,2899.0,2898.9,0.00316718]
[1645164354198,0.14424369,2899.0,2898.9,1.31158433]
[1645164354405,0.14424369,2899.0,2898.7,1.31246297]
[1645164354616,1.00712369,2899.0,2898.8,0.00316724]
[1645164354803,0.14424369,2898.9,2898.8,0.00721306]
[1645164355603,0.14424369,2898.9,2898.8,0.00404582]
[1645164356502,0.14453053,2898.9,2898.8,1.31246297]
[1645164356803,1.0,2899.2,2899.1,1.2477477]
[1645164357003,1.64957418,2899.2,2899.1,2.55616485]
[1645164357257,0.64957418,2899.2,2899.1,2.55616485]
[1645164357461,1.64957418,2899.2,2899.1,2.55616485]
[1645164357679,0.64957418,2899.2,2899.1,2.55616485]
[1645164357871,1.64957418,2899.2,2899.1,2.55616485]
[1645164358058,0.64957418,2899.2,2899.1,2.55616485]
[1645164358257,1.94957418,2899.2,2899.1,2.55616485]
[1645164358659,0.94957418,2899.2,2899.1,2.55616485]
[1645164358859,1.94957418,2899.2,2899.1,2.55616485]
[1645164359058,0.94957418,2899.2,2899.1,2.55616485]
[1645164359260,1.94957418,2899.2,2899.1,2.55616485]
[1645164359461,0.94957418,2899.2,2899.1,2.55616485]
[1645164359659,1.94957418,2899.2,2899.1,2.55616485]
[1645164360163,0.94957418,2899.2,2899.1,2.55616485]
[1645164360360,1.94957418,2899.2,2899.1,2.55616485]
[1645164360560,0.94957418,2899.2,2899.1,2.55616485]
[1645164360762,1.94957418,2899.2,2899.1,2.58764519]
[1645164361027,0.94957418,2899.2,2899.1,2.58764519]
[1645164361198,1.94957418,2899.2,2899.1,2.58764519]
[1645164362203,5.44957418,2899.2,2899.1,2.58764519]
[1645164362403,4.44957418,2899.2,2899.1,2.58764519]
[1645164362604,6.11012209,2899.2,2899.1,0.36148753]
[1645164362805,5.74957418,2899.2,2899.1,0.36148753]
[1645164363003,5.74957418,2899.2,2898.1,0.1724]
[1645164363004,5.92197418,2899.2,2898.2,0.00404582]
[1645164363208,5.92197418,2899.2,2898.6,0.01268059]
[1645164363209,1.16302,2898.9,2898.6,0.01268059]
[1645164363404,3.65057418,2898.8,2898.7,1.29118706]
[1645164363609,0.88282458,2898.7,2898.6,0.01268059]
[1645164363804,6.33239876,2898.7,2898.6,0.01268059]
[1645164364005,6.33239876,2898.7,2898.6,1.28388089]
[1645164364208,6.33239876,2898.7,2898.5,0.00316997]
[1645164364408,5.54913418,2898.6,2898.5,0.00316997]
[1645164364659,6.34813418,2898.6,2898.5,0.00316997]
[1645164364862,4.0,2898.5,2898.4,1.28802383]
[1645164365055,5.32197418,2898.5,2898.4,1.28397801]
[1645164365259,5.92197418,2898.5,2898.4,1.28397801]
[1645164365455,5.92197418,2898.5,2897.9,1.28397801]
[1645164365657,5.92197418,2898.5,2898.0,1.28802383]
[1645164365658,1.01369418,2898.4,2898.0,1.28802383]
[1645164365856,0.499,2898.3,2898.0,1.28397801]
[1645164366057,0.64957418,2898.3,2898.1,1.28802383]
[1645164366305,0.15057418,2898.2,2897.8,0.00404582]
[1645164366457,0.15057418,2898.2,2897.9,1.28284975]
[1645164366658,0.15057418,2898.2,2898.0,0.00404582]
[1645164366857,0.15057418,2898.2,2898.1,1.28284975]